[Event "*** SCC Grand Prix: Titled Tuesday Blitz"]
[Site "Chess.com"]
[Date "2020.06.02"]
[Round "9"]
[White "Harry_Rakkel"]
[Black "Smile2005"]
[Result "0-1"]
[WhiteElo "2502"]
[BlackElo "2423"]
[TimeControl "180+1"]
[EndTime "11:48:57 PDT"]
[Termination "Smile2005 won by resignation"]

1. d4 {[%clk 0:02:41.5]} 1... Nf6 {[%clk 0:02:59.3]} 2. Nf3 {[%clk 0:02:41]}
2... g6 {[%clk 0:03:00.2]} 3. Bg5 {[%clk 0:02:41.1]} 3... Bg7 {[%clk 0:03:01.1]}
4. Nbd2 {[%clk 0:02:41.3]} 4... O-O {[%clk 0:03:01.5]} 5. e4 {[%clk 0:02:41.1]}
5... d6 {[%clk 0:03:02.4]} 6. c3 {[%clk 0:02:39.5]} 6... c5 {[%clk 0:03:02.5]}
7. dxc5 {[%clk 0:02:38.8]} 7... dxc5 {[%clk 0:03:01.5]} 8. Bc4 {[%clk
0:02:39.3]} 8... Qb6 {[%clk 0:03:01.2]} 9. Qb3 {[%clk 0:02:37]} 9... Nc6 {[%clk
0:02:56.9]} 10. O-O {[%clk 0:02:32.7]} 10... Na5 {[%clk 0:02:57.1]} 11. Qxb6
{[%clk 0:02:31.9]} 11... axb6 {[%clk 0:02:57.3]} 12. Bb5 {[%clk 0:02:31.2]}
12... h6 {[%clk 0:02:53.5]} 13. Bxf6 {[%clk 0:02:29.2]} 13... Bxf6 {[%clk
0:02:53.1]} 14. Rfd1 {[%clk 0:02:26.3]} 14... Be6 {[%clk 0:02:51.8]} 15. a3
{[%clk 0:02:07.6]} 15... Rfd8 {[%clk 0:02:49.6]} 16. Nf1 {[%clk 0:01:56]} 16...
Nb3 {[%clk 0:02:28.4]} 17. Rab1 {[%clk 0:01:50]} 17... g5 {[%clk 0:02:01.2]} 18.
h3 {[%clk 0:01:42.7]} 18... h5 {[%clk 0:02:01.3]} 19. e5 {[%clk 0:01:40.4]}
19... Bg7 {[%clk 0:01:39]} 20. Nxg5 {[%clk 0:01:39.4]} 20... Bf5 {[%clk
0:01:15.5]} 21. Bc4 {[%clk 0:01:38.9]} 21... Bxb1 {[%clk 0:01:13]} 22. Rxb1
{[%clk 0:01:39.8]} 22... Nd2 {[%clk 0:01:05.9]} 23. Bxf7+ {[%clk 0:01:38.3]}
23... Kh8 {[%clk 0:01:00.4]} 24. Nxd2 {[%clk 0:01:37.6]} 24... Rxd2 {[%clk
0:01:00]} 25. Bxh5 {[%clk 0:01:37.3]} 25... Bh6 {[%clk 0:00:53]} 26. Nf7+ {[%clk
0:01:35.4]} 26... Kg7 {[%clk 0:00:51.3]} 27. Nxh6 {[%clk 0:01:33.9]} 27... Kxh6
{[%clk 0:00:51.5]} 28. Bf3 {[%clk 0:01:34.5]} 28... Rf8 {[%clk 0:00:49.3]} 29.
a4 {[%clk 0:01:32.5]} 29... Rf5 {[%clk 0:00:47.1]} 30. e6 {[%clk 0:01:30]} 30...
Kg5 {[%clk 0:00:45.2]} 31. b4 {[%clk 0:01:21.5]} 31... Kf6 {[%clk 0:00:43.8]}
32. b5 {[%clk 0:01:17.8]} 32... Rf4 {[%clk 0:00:37.4]} 33. a5 {[%clk 0:01:15.6]}
33... bxa5 {[%clk 0:00:34.6]} 34. Bxb7 {[%clk 0:01:15.2]} 34... Rfxf2 {[%clk
0:00:33.4]} 35. Bc6 {[%clk 0:01:00]} 35... Rb2 {[%clk 0:00:26.9]} 36. Ra1 {[%clk
0:00:59.5]} 36... Rfc2 {[%clk 0:00:18]} 37. Rxa5 {[%clk 0:00:56.9]} 37... Rxc3
{[%clk 0:00:17.6]} 38. Ra6 {[%clk 0:00:52.5]} 38... Rd3 {[%clk 0:00:15.4]} 39.
h4 {[%clk 0:00:48.4]} 39... c4 {[%clk 0:00:13.1]} 40. Ra4 {[%clk 0:00:44.6]}
40... c3 {[%clk 0:00:11.6]} 41. Rf4+ {[%clk 0:00:41.8]} 41... Ke5 {[%clk
0:00:11.4]} 42. Re4+ {[%clk 0:00:37.3]} 42... Kd6 {[%clk 0:00:11.6]} 43. Rc4
{[%clk 0:00:36.5]} 43... c2 {[%clk 0:00:10]} 44. Kh2 {[%clk 0:00:35.9]} 44...
Rd1 {[%clk 0:00:07]} 45. h5 {[%clk 0:00:34.4]} 45... c1=Q {[%clk 0:00:07]} 46.
Rxc1 {[%clk 0:00:34.4]} 46... Rxc1 {[%clk 0:00:07.3]} 47. h6 {[%clk 0:00:35.3]}
47... Rc4 {[%clk 0:00:05.2]} 48. Kh3 {[%clk 0:00:33]} 48... Rf4 {[%clk
0:00:03.4]} 49. g4 {[%clk 0:00:28.4]} 49... Rb3+ {[%clk 0:00:02.6]} 50. Kh4
{[%clk 0:00:28.1]} 50... Rbb4 {[%clk 0:00:03]} 51. Kh5 {[%clk 0:00:27.6]} 51...
Rxg4 {[%clk 0:00:02.9]} 52. Bf3 {[%clk 0:00:26.7]} 52... Rh4+ {[%clk 0:00:03.2]}
53. Kg5 {[%clk 0:00:25.9]} 53... Rxh6 {[%clk 0:00:02.6]} 54. Kxh6 {[%clk
0:00:25.8]} 54... Rxb5 {[%clk 0:00:03.3]} 55. Bg4 {[%clk 0:00:25.7]} 55... Re5
{[%clk 0:00:03.6]} 56. Kg6 {[%clk 0:00:26.1]} 56... Rxe6+ {[%clk 0:00:04]} 57.
Kf5 {[%clk 0:00:26.4]} 57... Re5+ {[%clk 0:00:04.2]} 58. Kf4 {[%clk 0:00:27.3]}
58... Ra5 {[%clk 0:00:04.3]} 59. Kf3 {[%clk 0:00:28.1]} 59... e5 {[%clk
0:00:04.6]} 60. Bf5 {[%clk 0:00:27.6]} 60... Kd5 {[%clk 0:00:04.6]} 61. Ke2
{[%clk 0:00:27.7]} 61... Kd4 {[%clk 0:00:05.1]} 62. Bh7 {[%clk 0:00:26.8]} 62...
Ra3 {[%clk 0:00:05.6]} 63. Kd2 {[%clk 0:00:27.7]} 63... Ra2+ {[%clk 0:00:05.5]}
64. Ke1 {[%clk 0:00:28.6]} 64... e4 {[%clk 0:00:05.9]} 65. Kd1 {[%clk
0:00:29.5]} 65... e3 {[%clk 0:00:06.1]} 66. Kc1 {[%clk 0:00:30.4]} 66... e2
{[%clk 0:00:06.5]} 0-1

[Event "*** SCC Grand Prix: Titled Tuesday Blitz"]
[Site "Chess.com"]
[Date "2020.06.02"]
[Round "9"]
[White "KerryStead"]
[Black "mamonika"]
[Result "1-0"]
[WhiteElo "2093"]
[BlackElo "1957"]
[TimeControl "180+1"]
[EndTime "11:49:06 PDT"]
[Termination "KerryStead won on time"]

1. c4 {[%clk 0:03:00.9]} 1... c5 {[%clk 0:02:58]} 2. Nc3 {[%clk 0:03:00.2]} 2...
Nc6 {[%clk 0:02:58.2]} 3. g3 {[%clk 0:03:00.4]} 3... g6 {[%clk 0:02:58.7]} 4.
Bg2 {[%clk 0:03:00.7]} 4... Bg7 {[%clk 0:02:59.6]} 5. e3 {[%clk 0:03:01]} 5...
d6 {[%clk 0:02:49.9]} 6. Nge2 {[%clk 0:03:00.3]} 6... Nf6 {[%clk 0:02:50.1]} 7.
d4 {[%clk 0:02:58.8]} 7... O-O {[%clk 0:02:47.3]} 8. O-O {[%clk 0:02:57.3]} 8...
cxd4 {[%clk 0:02:47.5]} 9. exd4 {[%clk 0:02:57.1]} 9... a6 {[%clk 0:02:34.9]}
10. Be3 {[%clk 0:02:55.3]} 10... Nd7 {[%clk 0:02:34.1]} 11. Qd2 {[%clk
0:02:54.1]} 11... e5 {[%clk 0:02:22]} 12. d5 {[%clk 0:02:52.3]} 12... Ne7 {[%clk
0:02:16]} 13. Bg5 {[%clk 0:02:44]} 13... f5 {[%clk 0:02:14.1]} 14. h4 {[%clk
0:02:39.9]} 14... Nf6 {[%clk 0:02:01.2]} 15. Rac1 {[%clk 0:02:22.2]} 15... Bd7
{[%clk 0:01:43.5]} 16. Bh6 {[%clk 0:02:05.5]} 16... b5 {[%clk 0:01:36.1]} 17. b3
{[%clk 0:01:59.1]} 17... Rc8 {[%clk 0:01:16.5]} 18. Bxg7 {[%clk 0:01:56.1]}
18... Kxg7 {[%clk 0:01:16.4]} 19. Nd1 {[%clk 0:01:55.6]} 19... bxc4 {[%clk
0:01:00]} 20. bxc4 {[%clk 0:01:55.2]} 20... Qb6 {[%clk 0:00:56.3]} 21. Ne3
{[%clk 0:01:52]} 21... Rc7 {[%clk 0:00:42.4]} 22. Kh1 {[%clk 0:01:50.4]} 22...
Rb8 {[%clk 0:00:37.6]} 23. f4 {[%clk 0:01:48.8]} 23... e4 {[%clk 0:00:30.1]} 24.
Nd4 {[%clk 0:01:46.3]} 24... Qb2 {[%clk 0:00:26.2]} 25. Rf2 {[%clk 0:01:42.9]}
25... Qxd2 {[%clk 0:00:24.3]} 26. Rxd2 {[%clk 0:01:41.9]} 26... Nc8 {[%clk
0:00:22]} 27. Bf1 {[%clk 0:01:33.9]} 27... Nb6 {[%clk 0:00:20.9]} 28. Kg2 {[%clk
0:01:29.5]} 28... Na4 {[%clk 0:00:20.9]} 29. Nb3 {[%clk 0:01:25.5]} 29... Nc5
{[%clk 0:00:19.8]} 30. Nd4 {[%clk 0:01:20.2]} 30... Rcb7 {[%clk 0:00:16.8]} 31.
Rcc2 {[%clk 0:01:18.7]} 31... Rb1 {[%clk 0:00:16.1]} 32. Be2 {[%clk 0:01:14.2]}
32... a5 {[%clk 0:00:14.3]} 33. Nd1 {[%clk 0:01:07]} 33... a4 {[%clk 0:00:12.4]}
34. Nc3 {[%clk 0:01:06.1]} 34... R1b4 {[%clk 0:00:11]} 35. a3 {[%clk 0:01:04.9]}
35... R4b7 {[%clk 0:00:09.6]} 36. Ndb5 {[%clk 0:01:01.8]} 36... Rb6 {[%clk
0:00:07.2]} 37. Rb2 {[%clk 0:00:59]} 37... Nb3 {[%clk 0:00:06.3]} 38. Rdc2
{[%clk 0:00:57.6]} 38... Ra6 {[%clk 0:00:05.9]} 39. Bd1 {[%clk 0:00:54.8]} 39...
Kf7 {[%clk 0:00:05.6]} 40. Ne2 {[%clk 0:00:54.5]} 40... Ke7 {[%clk 0:00:05.1]}
41. Ned4 {[%clk 0:00:54]} 41... Nc5 {[%clk 0:00:03.9]} 42. Rd2 {[%clk
0:00:51.2]} 42... Rab6 {[%clk 0:00:03]} 43. Rbc2 {[%clk 0:00:46.9]} 43... Ne8
{[%clk 0:00:03]} 44. h5 {[%clk 0:00:40.5]} 44... Kd8 {[%clk 0:00:03.9]} 45. hxg6
{[%clk 0:00:38.5]} 45... hxg6 {[%clk 0:00:04.8]} 46. Kf1 {[%clk 0:00:37.9]}
46... Nc7 {[%clk 0:00:05.3]} 47. Nxc7 {[%clk 0:00:36.2]} 47... Kxc7 {[%clk
0:00:06.2]} 48. Rh2 {[%clk 0:00:35.8]} 48... Nb3 {[%clk 0:00:06]} 49. Rh7 {[%clk
0:00:34.1]} 49... Nxd4 {[%clk 0:00:05.8]} 50. Rd2 {[%clk 0:00:32.5]} 50... Nb3
{[%clk 0:00:06.2]} 51. Rc2 {[%clk 0:00:28.4]} 51... Nc5 {[%clk 0:00:06.6]} 52.
Be2 {[%clk 0:00:26.2]} 52... Rb3 {[%clk 0:00:06.8]} 53. Kf2 {[%clk 0:00:24.8]}
53... Rxa3 {[%clk 0:00:07.2]} 54. g4 {[%clk 0:00:23.3]} 54... Ra1 {[%clk
0:00:07]} 55. gxf5 {[%clk 0:00:23]} 55... gxf5 {[%clk 0:00:07.7]} 56. Bh5 {[%clk
0:00:20.2]} 56... a3 {[%clk 0:00:07.5]} 57. Bf7 {[%clk 0:00:19.9]} 57... a2
{[%clk 0:00:07]} 58. Be6 {[%clk 0:00:20.1]} 58... Rab1 {[%clk 0:00:05.4]} 59.
Rxa2 {[%clk 0:00:19.6]} 59... R1b2+ {[%clk 0:00:04.9]} 60. Rxb2 {[%clk
0:00:19.5]} 60... Rxb2+ {[%clk 0:00:05.8]} 61. Ke3 {[%clk 0:00:19.6]} 61... Rb3+
{[%clk 0:00:06.1]} 62. Ke2 {[%clk 0:00:19.3]} 62... Rb2+ {[%clk 0:00:05.5]} 63.
Ke3 {[%clk 0:00:18.2]} 63... Kc8 {[%clk 0:00:03.9]} 64. Bxd7+ {[%clk 0:00:16.8]}
64... Nxd7 {[%clk 0:00:04]} 65. Rf7 {[%clk 0:00:17.5]} 65... Rb3+ {[%clk
0:00:03.7]} 66. Ke2 {[%clk 0:00:16.6]} 66... Rc3 {[%clk 0:00:02.4]} 67. Rxf5
{[%clk 0:00:16.8]} 67... Rxc4 {[%clk 0:00:02.8]} 68. Ke3 {[%clk 0:00:17.2]}
68... Nc5 {[%clk 0:00:01.6]} 69. Rf6 {[%clk 0:00:16.2]} 69... Kc7 {[%clk
0:00:01.8]} 70. Rf7+ {[%clk 0:00:16.5]} 70... Kb6 {[%clk 0:00:01.6]} 71. f5
{[%clk 0:00:16.5]} 71... Rc3+ {[%clk 0:00:02.5]} 72. Kf4 {[%clk 0:00:14.9]}
72... Rf3+ {[%clk 0:00:02.3]} 73. Kg4 {[%clk 0:00:14.5]} 73... Rf1 {[%clk
0:00:02.5]} 74. Re7 {[%clk 0:00:14.3]} 74... Rf2 {[%clk 0:00:01.1]} 75. Kg5
{[%clk 0:00:14.3]} 1-0

[Event "*** SCC Grand Prix: Titled Tuesday Blitz"]
[Site "Chess.com"]
[Date "2020.06.02"]
[Round "9"]
[White "davigator"]
[Black "Oligan22"]
[Result "0-1"]
[WhiteElo "2312"]
[BlackElo "2432"]
[TimeControl "180+1"]
[EndTime "11:49:08 PDT"]
[Termination "Oligan22 won on time"]

1. e4 {[%clk 0:03:00.9]} 1... c6 {[%clk 0:03:00.1]} 2. d4 {[%clk 0:02:59.8]}
2... d5 {[%clk 0:03:01]} 3. e5 {[%clk 0:03:00.3]} 3... Bf5 {[%clk 0:03:00.6]} 4.
h4 {[%clk 0:03:00.1]} 4... h5 {[%clk 0:03:00]} 5. c4 {[%clk 0:02:58.8]} 5... e6
{[%clk 0:02:56.8]} 6. Nc3 {[%clk 0:02:58.3]} 6... Nd7 {[%clk 0:02:54.5]} 7. Bf4
{[%clk 0:02:55]} 7... Ne7 {[%clk 0:02:52]} 8. Be2 {[%clk 0:02:54.3]} 8... dxc4
{[%clk 0:02:51.4]} 9. Bxc4 {[%clk 0:02:54]} 9... Nb6 {[%clk 0:02:51.9]} 10. Bd3
{[%clk 0:02:53.4]} 10... Ned5 {[%clk 0:02:52]} 11. Bg5 {[%clk 0:02:51.7]} 11...
Be7 {[%clk 0:02:50.6]} 12. Bxf5 {[%clk 0:02:48.9]} 12... exf5 {[%clk 0:02:49.7]}
13. Bxe7 {[%clk 0:02:47.6]} 13... Qxe7 {[%clk 0:02:49]} 14. Nge2 {[%clk
0:02:47.7]} 14... O-O {[%clk 0:02:38.2]} 15. g3 {[%clk 0:02:46.5]} 15... Rad8
{[%clk 0:02:37]} 16. O-O {[%clk 0:02:44.9]} 16... f4 {[%clk 0:02:31.8]} 17. Ne4
{[%clk 0:02:37.4]} 17... fxg3 {[%clk 0:02:21.6]} 18. N2xg3 {[%clk 0:02:32.2]}
18... Qxh4 {[%clk 0:01:54.3]} 19. Qxh5 {[%clk 0:02:30.9]} 19... Qxh5 {[%clk
0:01:46.1]} 20. Nxh5 {[%clk 0:02:30.1]} 20... Rfe8 {[%clk 0:01:26.6]} 21. Rad1
{[%clk 0:02:24.3]} 21... Re6 {[%clk 0:01:25.6]} 22. Rd3 {[%clk 0:02:18.9]} 22...
Rh6 {[%clk 0:01:21.7]} 23. Rh3 {[%clk 0:02:13.5]} 23... Nb4 {[%clk 0:01:17.8]}
24. Nd6 {[%clk 0:02:05.5]} 24... Kf8 {[%clk 0:00:53.8]} 25. Kg2 {[%clk
0:01:52.5]} 25... Rhxd6 {[%clk 0:00:50.1]} 26. exd6 {[%clk 0:01:51.6]} 26...
Rxd6 {[%clk 0:00:51]} 27. a3 {[%clk 0:01:49.7]} 27... N4d5 {[%clk 0:00:48.6]}
28. Re1 {[%clk 0:01:44.8]} 28... g6 {[%clk 0:00:44.8]} 29. Kf3 {[%clk
0:01:15.6]} 29... gxh5 {[%clk 0:00:43.5]} 30. Rxh5 {[%clk 0:01:15.3]} 30... Rf6+
{[%clk 0:00:41]} 31. Ke4 {[%clk 0:01:13.7]} 31... Nc4 {[%clk 0:00:34.3]} 32.
Rh8+ {[%clk 0:01:09.8]} 32... Kg7 {[%clk 0:00:34.3]} 33. Reh1 {[%clk 0:01:09.2]}
33... Re6+ {[%clk 0:00:26.6]} 34. Kf5 {[%clk 0:00:56.3]} 34... Rf6+ {[%clk
0:00:26.9]} 35. Ke4 {[%clk 0:00:55.9]} 35... Rxf2 {[%clk 0:00:26.1]} 36. Rb8
{[%clk 0:00:48.9]} 36... Kf6 {[%clk 0:00:24.4]} 37. Rh6+ {[%clk 0:00:47.1]}
37... Ke7 {[%clk 0:00:24.1]} 38. Rxb7+ {[%clk 0:00:46.5]} 38... Kf8 {[%clk
0:00:21.9]} 39. Rxc6 {[%clk 0:00:45]} 39... Ncb6 {[%clk 0:00:17.6]} 40. Rxa7
{[%clk 0:00:41.5]} 40... Rxb2 {[%clk 0:00:17.6]} 41. a4 {[%clk 0:00:38.9]} 41...
Rb3 {[%clk 0:00:17.7]} 42. a5 {[%clk 0:00:36.6]} 42... Re3+ {[%clk 0:00:17.7]}
43. Kf5 {[%clk 0:00:35.9]} 43... Na4 {[%clk 0:00:13.8]} 44. Rc8+ {[%clk
0:00:33.6]} 44... Kg7 {[%clk 0:00:14]} 45. Rd8 {[%clk 0:00:33.3]} 45... Ne7+
{[%clk 0:00:13.9]} 46. Kf4 {[%clk 0:00:32.7]} 46... Re1 {[%clk 0:00:13.4]} 47.
Rdd7 {[%clk 0:00:31.3]} 47... Ng6+ {[%clk 0:00:12.9]} 48. Kf3 {[%clk 0:00:30.8]}
48... Nc3 {[%clk 0:00:12.7]} 49. Rxf7+ {[%clk 0:00:30.2]} 49... Kh6 {[%clk
0:00:12.2]} 50. Ra6 {[%clk 0:00:28.9]} 50... Rf1+ {[%clk 0:00:10.5]} 51. Kg4
{[%clk 0:00:27]} 51... Rxf7 {[%clk 0:00:11.4]} 52. Rd6 {[%clk 0:00:25.7]} 52...
Ne4 {[%clk 0:00:11.2]} 53. Re6 {[%clk 0:00:24.5]} 53... Nf6+ {[%clk 0:00:10.9]}
54. Kh3 {[%clk 0:00:20.4]} 54... Kg5 {[%clk 0:00:09.9]} 55. Rb6 {[%clk
0:00:19.1]} 55... Rd7 {[%clk 0:00:09.9]} 56. a6 {[%clk 0:00:18.2]} 56... Nf4+
{[%clk 0:00:09.7]} 57. Kg3 {[%clk 0:00:17.1]} 57... N6h5+ {[%clk 0:00:09.6]} 58.
Kf3 {[%clk 0:00:16.3]} 58... Rxd4 {[%clk 0:00:10.1]} 59. a7 {[%clk 0:00:15.2]}
59... Ra4 {[%clk 0:00:10]} 60. Rb7 {[%clk 0:00:15.1]} 60... Kf5 {[%clk
0:00:10.3]} 61. Rf7+ {[%clk 0:00:13.7]} 61... Kg6 {[%clk 0:00:09.8]} 62. Rb7
{[%clk 0:00:13]} 62... Kf5 {[%clk 0:00:09.7]} 63. Rb5+ {[%clk 0:00:12.1]} 63...
Ke6 {[%clk 0:00:09.5]} 64. Rb6+ {[%clk 0:00:11.6]} 64... Kd5 {[%clk 0:00:08.7]}
65. Rb7 {[%clk 0:00:09.6]} 65... Kc6 {[%clk 0:00:08.8]} 66. Rh7 {[%clk
0:00:08.2]} 66... Ra3+ {[%clk 0:00:08.5]} 67. Ke4 {[%clk 0:00:07.2]} 67... Ra4+
{[%clk 0:00:08.9]} 68. Kf3 {[%clk 0:00:05.8]} 68... Kd6 {[%clk 0:00:09.1]} 69.
Rh6+ {[%clk 0:00:03.5]} 69... Ke5 {[%clk 0:00:08.9]} 70. Rh7 {[%clk 0:00:02.7]}
70... Kf6 {[%clk 0:00:09.2]} 71. Rb7 {[%clk 0:00:01.8]} 71... Kg5 {[%clk
0:00:09.3]} 72. Rc7 {[%clk 0:00:01.5]} 72... Nf6 {[%clk 0:00:08.7]} 73. Rb7
{[%clk 0:00:01.4]} 73... Ne6 {[%clk 0:00:08.3]} 0-1

[Event "*** SCC Grand Prix: Titled Tuesday Blitz"]
[Site "Chess.com"]
[Date "2020.06.02"]
[Round "9"]
[White "Skatchkov_V"]
[Black "LionTheLeon_06"]
[Result "0-1"]
[WhiteElo "2556"]
[BlackElo "2692"]
[TimeControl "180+1"]
[EndTime "11:49:12 PDT"]
[Termination "LionTheLeon_06 won on time"]

1. Nf3 {[%clk 0:03:00.9]} 1... Nf6 {[%clk 0:02:58.9]} 2. g3 {[%clk 0:03:00.8]}
2... d5 {[%clk 0:02:58.2]} 3. d4 {[%clk 0:03:00.1]} 3... e6 {[%clk 0:02:58.4]}
4. c4 {[%clk 0:02:59.9]} 4... Be7 {[%clk 0:02:58.6]} 5. Bg2 {[%clk 0:03:00.1]}
5... O-O {[%clk 0:02:59.2]} 6. O-O {[%clk 0:02:59.9]} 6... dxc4 {[%clk
0:02:59.9]} 7. Qc2 {[%clk 0:03:00.4]} 7... b6 {[%clk 0:02:58.7]} 8. Ne5 {[%clk
0:02:41.8]} 8... Qxd4 {[%clk 0:02:57.9]} 9. Bxa8 {[%clk 0:02:32.9]} 9... Qxe5
{[%clk 0:02:57.8]} 10. Bg2 {[%clk 0:02:29.2]} 10... Nd5 {[%clk 0:02:49.5]} 11.
Qxc4 {[%clk 0:02:20]} 11... Ba6 {[%clk 0:02:48.1]} 12. Qa4 {[%clk 0:02:10.8]}
12... c5 {[%clk 0:02:40.1]} 13. Nc3 {[%clk 0:01:47.9]} 13... Nxc3 {[%clk
0:02:09.9]} 14. bxc3 {[%clk 0:01:48.8]} 14... Qxc3 {[%clk 0:02:06.8]} 15. Bf4
{[%clk 0:01:43.3]} 15... e5 {[%clk 0:02:01.1]} 16. Be3 {[%clk 0:01:24.8]} 16...
Qc4 {[%clk 0:01:52.6]} 17. Qa3 {[%clk 0:01:11.7]} 17... Qxe2 {[%clk 0:01:45.5]}
18. Rfe1 {[%clk 0:01:11]} 18... Qd3 {[%clk 0:01:42.8]} 19. Qb2 {[%clk
0:01:06.9]} 19... Bf6 {[%clk 0:01:34.3]} 20. Rad1 {[%clk 0:01:04.5]} 20... Qb5
{[%clk 0:01:32.5]} 21. Qa3 {[%clk 0:01:03.6]} 21... Qc4 {[%clk 0:01:14.5]} 22.
Bf1 {[%clk 0:00:50.4]} 22... Qb4 {[%clk 0:01:14.6]} 23. Qxb4 {[%clk 0:00:48.5]}
23... cxb4 {[%clk 0:01:14.8]} 24. Bxa6 {[%clk 0:00:46.5]} 24... Nxa6 {[%clk
0:01:15.7]} 25. Rd7 {[%clk 0:00:47]} 25... Ra8 {[%clk 0:01:05.8]} 26. Rc1 {[%clk
0:00:37.9]} 26... h5 {[%clk 0:00:59.6]} 27. h4 {[%clk 0:00:36.2]} 27... g6
{[%clk 0:00:41.1]} 28. Kg2 {[%clk 0:00:35.8]} 28... Kg7 {[%clk 0:00:32]} 29. Kf3
{[%clk 0:00:35.6]} 29... Nb8 {[%clk 0:00:24]} 30. Rb7 {[%clk 0:00:33]} 30... Na6
{[%clk 0:00:24]} 31. Ke2 {[%clk 0:00:23.4]} 31... Kg8 {[%clk 0:00:21.7]} 32. Rc4
{[%clk 0:00:21.9]} 32... Bg7 {[%clk 0:00:19.7]} 33. Rc1 {[%clk 0:00:19.8]} 33...
Bf6 {[%clk 0:00:19.5]} 34. Rd1 {[%clk 0:00:17.8]} 34... Nc5 {[%clk 0:00:18.4]}
35. Bxc5 {[%clk 0:00:17]} 35... bxc5 {[%clk 0:00:18.4]} 36. Rdd7 {[%clk
0:00:17.6]} 36... a5 {[%clk 0:00:16.6]} 37. Rxf7 {[%clk 0:00:16.9]} 37... Bh8
{[%clk 0:00:15.9]} 38. Rfc7 {[%clk 0:00:15.6]} 38... a4 {[%clk 0:00:13.3]} 39.
Rxc5 {[%clk 0:00:14.6]} 39... b3 {[%clk 0:00:13.8]} 40. a3 {[%clk 0:00:11]}
40... e4 {[%clk 0:00:12.6]} 41. Kd1 {[%clk 0:00:10]} 41... Rd8+ {[%clk
0:00:11.7]} 42. Kc1 {[%clk 0:00:10.2]} 42... Bg7 {[%clk 0:00:10.7]} 43. Rcc7
{[%clk 0:00:09.5]} 43... Bh6+ {[%clk 0:00:09.8]} 44. Kb1 {[%clk 0:00:07.8]}
44... Rd1+ {[%clk 0:00:09.4]} 45. Kb2 {[%clk 0:00:08.3]} 45... Rd2+ {[%clk
0:00:09.6]} 46. Kb1 {[%clk 0:00:07.3]} 46... Bf8 {[%clk 0:00:08.3]} 47. Rc8
{[%clk 0:00:05.4]} 47... Rd1+ {[%clk 0:00:08]} 48. Kb2 {[%clk 0:00:05.1]} 48...
Rd2+ {[%clk 0:00:08.5]} 49. Kb1 {[%clk 0:00:04.8]} 49... Rxf2 {[%clk 0:00:09.2]}
50. Rbb8 {[%clk 0:00:04.4]} 50... e3 {[%clk 0:00:08.8]} 51. Re8 {[%clk
0:00:03.6]} 51... Rf1+ {[%clk 0:00:08.7]} 52. Kb2 {[%clk 0:00:04.1]} 52... Rf2+
{[%clk 0:00:09.3]} 53. Kc3 {[%clk 0:00:04.7]} 53... e2 {[%clk 0:00:08.2]} 54.
Kd2 {[%clk 0:00:04]} 54... b2 {[%clk 0:00:07.5]} 55. Rxb2 {[%clk 0:00:02.5]}
55... e1=Q+ {[%clk 0:00:07.4]} 56. Kxe1 {[%clk 0:00:02.2]} 56... Rxb2 {[%clk
0:00:07.9]} 57. g4 {[%clk 0:00:01.2]} 57... hxg4 {[%clk 0:00:07.7]} 58. Re4
{[%clk 0:00:01.1]} 58... Rb3 {[%clk 0:00:05.2]} 59. Rxa4 {[%clk 0:00:02]} 59...
Rxa3 {[%clk 0:00:05.1]} 60. Rxg4 {[%clk 0:00:02.9]} 60... Kh7 {[%clk 0:00:05.7]}
61. Kf1 {[%clk 0:00:01.7]} 61... Rb3 {[%clk 0:00:06]} 62. Rg5 {[%clk 0:00:01.7]}
62... Be7 {[%clk 0:00:05.4]} 63. Rd5 {[%clk 0:00:01.3]} 63... Bxh4 {[%clk
0:00:05.2]} 64. Kg2 {[%clk 0:00:02.2]} 64... Kh6 {[%clk 0:00:05.4]} 65. Rd7
{[%clk 0:00:02.7]} 65... Bg5 {[%clk 0:00:05.8]} 66. Kh2 {[%clk 0:00:03.1]} 66...
Rb2+ {[%clk 0:00:06.1]} 67. Kh3 {[%clk 0:00:02.8]} 67... Rb3+ {[%clk 0:00:06.6]}
68. Kg2 {[%clk 0:00:02.8]} 68... Rb4 {[%clk 0:00:07]} 69. Rd5 {[%clk 0:00:03.7]}
69... Bf6 {[%clk 0:00:06.8]} 70. Rd7 {[%clk 0:00:03.5]} 70... g5 {[%clk
0:00:06.8]} 71. Rd5 {[%clk 0:00:03.3]} 71... Kg6 {[%clk 0:00:07.2]} 72. Kg3
{[%clk 0:00:03.2]} 72... Rb3+ {[%clk 0:00:07.1]} 73. Kg2 {[%clk 0:00:03.1]}
73... g4 {[%clk 0:00:06.7]} 74. Rc5 {[%clk 0:00:02.6]} 74... Bg5 {[%clk
0:00:06.5]} 75. Rd5 {[%clk 0:00:01.9]} 75... Bf4 {[%clk 0:00:06]} 76. Rd4 {[%clk
0:00:01.4]} 76... Rb2+ {[%clk 0:00:05.9]} 0-1